Cogmind - Beta 15 @@@ ROGUE MODE // 2025.08.08 @ 13:52:03 Player: Inverisimilidude Result: Destroyed by S-43 Plague with Heavy Machine Gun Performance ------------- Evolutions (7) 3500 Regions Visited (11) 2200 Robots Destroyed (70) 350 Value Destroyed (1875) 1875 Prototype IDs (11) 220 Alien Tech Used (0) 0 Bonus (655) 655 TOTAL SCORE: 8800 Bonus ------- Follower Combat Kills 655 Cogmind --------- Core Integrity 0/1300 Matter 70/300 Energy 100/100 System Corruption 2% Temperature Cool (0) Movement Core (50) Location -3/Armory Parts ------- > --- POWER (1) -------- (None) > --- PROPULSION (8) --- (None) > --- UTILITY (10) ----- Machine Analyzer Advanced Launcher Guidance Computer System Shield > --- WEAPON (2) ------- (None) > --- INVENTORY (5) ---- Advanced Matter Compressor (0) Assault Cannon Advanced EMP Blaster Datajack Peak State ------------ > --- POWER ------------ Improved Deuterium Engine > --- PROPULSION ------- Light Treads Light Treads Armored Treads Wheel Compact Wheel Nuclear Pulse Thruster > --- UTILITY ---------- Huge Storage Unit Improved Sensor Array Advanced Signal Interpreter Improved Terrain Scanner Improved Terrain Scan Processor Reaction Control System Improved Light Armor Plating > --- WEAPON ----------- Improved Assault Rifle Enhanced Autogun > --- INVENTORY -------- Cooled Ion Engine Deuterium Engine Improved Heat Sink Medium Matter Pod Gravity Neutralizer Improved Sensor Array Hardened Light Armor Plating Improved Light Armor Plating Hacking Suite High-powered Tractor Beam Heavy Assault Rifle Enhanced Autogun Enhanced Autogun Enhanced Autogun Assault Cannon Assault Cannon Gauss Cannon Heavy Flak Cannon Advanced EMP Blaster Mini Grenade Launcher Missile Launcher Mining Claw [Rating: 50] Favorites ----------- Power Ion Engine Engine Ion Engine Power Core Improved Fusion Compressor Propulsion Light Treads Treads Light Treads Leg Aluminum Leg Wheel Wheel Hover Unit Combat Gravmag System Flight Unit VTOL Module Utility Huge Storage Unit Device Improved Sensor Array Storage Huge Storage Unit Processor Improved Signal Interpreter Hackware System Shield Protection Improved Light Armor Plating Weapon Enhanced Autogun Energy Gun Small Laser Ballistic Gun Enhanced Autogun Ballistic Cannon Light Cannon Launcher Mini Grenade Launcher Special Weapon Advanced Remote Datajack Slashing Weapon Mining Claw Special Melee Weapon Datajack Build | -11 -10 -10 -10 -8 -8 -8 -6 -5 -4 -3 -3 ------- Run | Yrd Mat Min Sub Mat Sto Rec Fac Fac Fac Res Arm Slots Evolved 14 | . . . . 4 . . 4 2 2 2 . Power . | . . . . . . . . . . . . Propulsion 6 | . . . . 2 . . 2 1 1 . . Utility 8 | . . . . 2 . . 2 1 1 2 . Weapon . | . . . . . . . . . . . . Parts Attached 86 | 8 2 7 . 18 16 4 7 4 8 12 . Power 10 | 1 . 1 . 3 2 . 1 . 1 1 . Engine 8 | 1 . 1 . 2 2 . 1 . 1 . . Core 2 | . . . . 1 . . . . . 1 . Reactor . | . . . . . . . . . . . . Propulsion 29 | 3 . 3 . 6 5 2 1 3 . 6 . Treads 10 | 1 . 1 . 4 4 . . . . . . Leg 1 | 1 . . . . . . . . . . . Wheel 8 | 1 . 2 . 2 . 2 1 . . . . Hover 4 | . . . . . 1 . . . . 3 . Flight 6 | . . . . . . . . 3 . 3 . Utility 27 | 2 1 1 . 4 5 2 3 . 5 4 . Device 8 | 1 . 1 . . 2 1 1 . 1 1 . Storage 4 | 1 1 . . . . . . . . 2 . Processor 6 | . . . . . 1 . 2 . 2 1 . Hackware 2 | . . . . . . . . . 2 . . Protection 7 | . . . . 4 2 1 . . . . . Artifact . | . . . . . . . . . . . . Weapon 20 | 2 1 2 . 5 4 . 2 1 2 1 . Energy Gun 1 | 1 . . . . . . . . . . . Energy Cannon . | . . . . . . . . . . . . Ballistic Gun 10 | 1 . 1 . 4 3 . . . 1 . . Ballistic Cannon 4 | . 1 . . . . . 2 1 . . . Launcher 2 | . . 1 . . 1 . . . . . . Special Weapon 1 | . . . . . . . . . . 1 . Impact Weapon . | . . . . . . . . . . . . Slashing Weapon 1 | . . . . 1 . . . . . . . Piercing Weapon . | . . . . . . . . . . . . Special Melee Weapon 1 | . . . . . . . . . 1 . . Unidentified Prototypes 11 | . . . . 1 5 . 1 . 1 3 . Parts Lost 29 | . . 5 1 3 . . . 7 5 6 2 Power 2 | . . 1 . . . . . . 1 . . Propulsion 13 | . . 2 1 1 . . . 3 2 2 2 Utility 10 | . . 1 . 2 . . . 3 2 2 . Weapon 4 | . . 1 . . . . . 1 . 2 . Highest Loss Streak 5 | . . 2 1 2 . . . 5 4 3 2 To Critical Strikes . | . . . . . . . . . . . . Average Backups 17 | 4 11 15 19 21 24 24 22 19 4 3 4 Power 1 | . 1 2 3 2 1 2 2 1 . . . Propulsion 1 | 2 3 1 . . 2 2 . . . . . Utility 6 | . 2 4 7 8 10 10 8 7 . . 1 Weapon 7 | . 4 6 9 9 9 10 11 10 3 2 2 Tool/Special . | . . . . . . . . . . . . Unused Backups 20 | . 1 . . 2 2 . . 12 2 . 1 Power 2 | . . . . . 1 . . 1 . . . Propulsion . | . . . . . . . . . . . . Utility 8 | . . . . . . . . 7 1 . . Weapon 10 | . 1 . . 2 1 . . 4 1 . 1 Tool/Special . | . . . . . . . . . . . . Average Slot Usage (%) 87 | . 100 97 100 91 100 100 91 80 27 24 20 Engine 8 | . 14 13 14 7 9 9 6 4 1 . . Treads 14 | . 14 12 14 22 18 18 19 14 . . . Wheel 13 | . 14 14 14 11 17 18 12 9 . . . Device 10 | . 14 13 14 6 12 10 13 11 4 . . Storage 8 | . 14 14 14 9 9 9 6 4 . . . Processor 5 | . . . . . 8 9 12 9 6 5 9 Protection 4 | . . . . 14 5 7 6 4 . . . Energy Gun 2 | . 8 12 . . . . . . . . . Ballistic Gun 10 | . 14 3 14 13 17 15 9 6 . . . Ballistic Cannon 2 | . 5 10 . 1 . . . 2 . . . Slashing Weapon 1 | . . . . . . 2 1 . 2 2 . Peak Build Rating 50 | 7 8 11 12 23 35 36 44 50 27 43 40 Average Rating 22 | 5 7 9 11 16 30 32 40 43 16 23 31 On Entrance 18 | . 7 8 11 12 22 35 30 43 5 9 40 Naked Turns 1 | . . . . . . . . 1 . . . Heaviest Build 106 | 13 90 90 88 100 98 98 106 105 11 14 . Greatest Support 80 | 20 10 26 16 80 52 42 26 26 8 42 23 Greatest Overweight (x) 9 | 1 8 8 8 9 4 9 4 4 1 . . Average Overweight (x) 3 | . 5 6 5 5 2 4 3 2 . . . Largest Inventory Capacity 25 | 8 25 25 25 25 25 25 25 25 5 5 5 Average Capacity 21 | 7 22 25 25 25 25 25 25 23 5 5 5 Most Carried 25 | 6 15 24 23 25 25 25 24 22 5 4 4 Average Carried 18 | 4 12 18 22 23 24 24 22 19 4 3 4 Final Capacity 25 | 8 25 25 25 25 25 25 25 5 5 5 5 Final Carried 25 | 6 14 23 22 23 25 24 23 5 4 4 4 Class Distribution -------------------- 39% | Mutant 25% | Commander-Mutant 17% | Scavenger-Mutant 8% | Commander-Skirmisher 3% | Hacker-Mutant 3% | Sprinter Dominant Class ---------------- Mutant | -10/Materials Mutant | -10/Mines Mutant | -10/Subcaves Scavenger-Mutant | -8/Materials Scavenger-Mutant | -8/Storage Commander-Mutant | -8/Recycling Commander-Skirmisher | -6/Factory Commander-Skirmisher | -5/Factory Sprinter | -4/Factory Hacker-Mutant | -3/Research Mutant | -3/Armory Resources | -11 -10 -10 -10 -8 -8 -8 -6 -5 -4 -3 -3 ----------- Run | Yrd Mat Min Sub Mat Sto Rec Fac Fac Fac Res Arm Matter Collected 2448 | 314 164 185 . 538 382 291 189 210 165 10 . Remotely . | . . . . . . . . . . . . Salvage Created 2391 | 203 221 131 23 511 421 96 296 317 172 . . Parts 155 | 24 14 14 5 31 25 3 12 21 6 . . Haulers Intercepted 6 | . 2 . . 2 1 . 1 . . . . Recyclers Shooed 2 | . . . . . 1 . . . 1 . . Parts Field Recycled . | . . . . . . . . . . . . Retrieved Matter . | . . . . . . . . . . . . Parts Self-Destructed 10 | . . . 10 . . . . . . . . Prevented . | . . . . . . . . . . . . Kills | -11 -10 -10 -10 -8 -8 -8 -6 -5 -4 -3 -3 ------- Run | Yrd Mat Min Sub Mat Sto Rec Fac Fac Fac Res Arm Combat Hostiles Destroyed 47 | . 5 11 1 7 6 2 5 10 . . . Guns 22 | . 3 4 . 3 6 2 2 2 . . . Cannons 16 | . 2 2 . 3 . . 1 8 . . . AOE 9 | . . 5 1 1 . . 2 . . . . Classes Destroyed 11 | 2 3 1 1 1 1 . . 2 . . . Worker 5 | . . 1 . 1 1 . . . 2 . . Tunneler 7 | 7 . . . . . . . . . . . Hauler 6 | . 2 . . 2 1 . 1 . . . . Recycler 3 | 1 . . . 1 . . . . 1 . . Operator 1 | . . . . . . . . 1 . . . Watcher 1 | . . . . . 1 . . . . . . Swarmer 19 | . 3 9 . . . . . 7 . . . Grunt 13 | . 2 2 . 3 1 . 4 1 . . . Sentry 12 | . . . . 4 5 1 1 1 . . . Hunter 1 | . . . . . . . . 1 . . . Subdweller 2 | . . . 1 . . 1 . . . . . Best Kill Streak 6 | 2 2 3 1 3 2 1 5 6 2 . . Combat Bots Only 5 | . 2 3 1 2 2 1 4 5 . . . Max Kills in Single Turn 2 | 1 1 2 1 1 1 1 1 1 1 . . Gunslinging . | . . . . . . . . . . . . Exploded 2 | . . 2 1 1 . . 1 . . . . Melee . | . . . . . . . . . . . . Uniques/NPCs Destroyed . | . . . . . . . . . . . . Combat | -11 -10 -10 -10 -8 -8 -8 -6 -5 -4 -3 -3 -------- Run | Yrd Mat Min Sub Mat Sto Rec Fac Fac Fac Res Arm Hostile Shots Fired 583 | . 23 53 1 50 36 24 15 100 51 189 41 Missed 242 | . 7 14 . 13 8 10 7 34 26 111 12 Hits 341 | . 16 39 1 37 28 14 8 66 25 78 29 Melee 5 | . . . . 4 . 1 . . . . . Projectile 336 | . 16 39 1 33 28 13 8 66 25 78 29 AOE 4 | . . 4 . . . . . . . . . Critical Strikes 8 | . . . . 3 1 . . . 1 3 . Actively Blocked 1 | . . . . 1 . . . . . . . Damage Taken 5910 | . 168 565 25 608 420 247 121 991 491 1740 534 Core 2156 | . 12 127 . 120 58 . . 195 333 938 373 Absorbed by Shields 313 | . . . . . . 13 35 246 . 19 . Redirected to Shielding 39 | . . . . 39 . . . . . . . Core Remaining (%) 77 | 100 . . 44 . . 67 100 80 71 . . Volleys Fired 195 | 24 21 28 1 41 27 11 13 29 . . . Largest 2 | 2 2 2 2 2 2 2 2 2 . . . Hottest 70 | 60 60 70 50 53 48 48 67 65 . . . Shots Fired 385 | 48 42 53 2 81 54 22 26 57 . . . Gun 304 | 48 33 35 1 57 54 22 19 35 . . . Cannon 66 | . 9 11 . 20 . . 4 22 . . . Launcher 15 | . . 7 1 4 . . 3 . . . . Special . | . . . . . . . . . . . . Kinetic 313 | 24 30 25 1 77 54 22 23 57 . . . Thermal 57 | 24 12 21 . . . . . . . . . Explosive 15 | . . 7 1 4 . . 3 . . . . Electromagnetic . | . . . . . . . . . . . . Robot Hit Streak 27 | 6 4 10 6 6 19 27 7 4 . . . Robot Miss Streak 4 | 3 4 3 . 2 1 1 4 3 . . . Penetration Max 1 | . . . . . . . . 1 . . . Secondary Targets . | . . . . . . . . . . . . Shots Hit Robots 250 | 26 20 26 2 54 43 19 20 32 8 . . Core Hits 131 | 13 13 17 1 26 15 5 18 20 2 . 1 Critical Kills . | . . . . . . . . . . . . Critical Parts Destroyed 4 | 1 1 . . 1 . . . 1 . . . Critical Strikes 7 | 1 1 . . 2 . . . 3 . . . Destroy 4 | 1 1 . . 1 . . . 1 . . . Blast 3 | . . . . 1 . . . 2 . . . Melee Attacks 19 | . . . . 2 2 3 1 . 11 . . Impact . | . . . . . . . . . . . . Slashing 18 | . . . . 2 2 3 1 . 10 . . Piercing . | . . . . . . . . . . . . Sneak Attacks 9 | . . . . 1 . . . . 8 . . Combat Hostiles . | . . . . . . . . . . . . Follow-up Attacks . | . . . . . . . . . . . . Damage Inflicted 5022 | 268 243 704 72 849 690 298 787 774 307 19 11 Guns 2673 | 268 164 219 6 464 690 298 257 307 . . . Cannons 983 | . 79 54 . 272 . . 111 467 . . . Explosions 983 | . . 431 66 67 . . 419 . . . . Melee 353 | . . . . 46 . . . . 307 . . Ramming 30 | . . . . . . . . . . 19 11 Kinetic 3224 | 86 162 104 6 736 690 298 368 774 . . . Thermal 432 | 182 81 169 . . . . . . . . . Explosive 983 | . . 431 66 67 . . 419 . . . . Electromagnetic . | . . . . . . . . . . . . Impact . | . . . . . . . . . . . . Slashing 353 | . . . . 46 . . . . 307 . . Piercing . | . . . . . . . . . . . . Highest Corruption 2 | . . . . 1 2 2 . 1 . 2 2 Average Corruption 1 | . . . . 1 1 2 . 1 . 1 2 Corruption Purged . | . . . . . . . . . . . . Corruption Blocked . | . . . . . . . . . . . . Effects 39 | . . . . 1 11 23 . . . 4 . Message Errors 8 | . . . . . 2 3 . . . 3 . Matter Fused 12 | . . . . . 3 8 . . . 1 . Heat Flow Errors 6 | . . . . . 2 4 . . . . . Energy Discharges 9 | . . . . . 3 6 . . . . . Parts Fused 1 | . . . . . . 1 . . . . . Data Loss (minor) 2 | . . . . . 1 1 . . . . . Weapon Failures 1 | . . . . 1 . . . . . . . Overload Shots . | . . . . . . . . . . . . Overflow Damage 123 | . . 27 . 6 . . 30 2 58 . . Projectiles 2 | . . . . . . . . 2 . . . Explosions 57 | . . 27 . . . . 30 . . . . Melee 64 | . . . . 6 . . . . 58 . . Knockbacks 15 | . . . . 2 . . 7 5 . 1 . Impact 1 | . . . . . . . . . . 1 . Kinetic 13 | . . . . 2 . . 7 4 . . . Secondary 1 | . . . . . . . . 1 . . . Self-Inflicted Damage 42 | . . 29 . . . . . . . 9 4 Shots 2 | . . 2 . . . . . . . . . Rammed 5 | . . . . . . . . . . 2 3 Targets Rammed 5 | . . . . . . . . . . 2 3 Kicked . | . . . . . . . . . . . . Crushed . | . . . . . . . . . . . . Highest Temperature 268 | 40 40 64 . 123 268 205 3 17 176 7 . Average Temperature 34 | 18 19 25 . 51 42 62 3 6 94 3 . Received Heat Transfer 1103 | . 42 96 . 234 180 67 35 191 12 246 . Siege Activations . | . . . . . . . . . . . . Martial Activations . | . . . . . . . . . . . . Shielding Activations . | . . . . . . . . . . . . Robots Disrupted . | . . . . . . . . . . . . Combat Hostiles . | . . . . . . . . . . . . Robots Corrupted . | . . . . . . . . . . . . Combat Hostiles . | . . . . . . . . . . . . Parts Fried . | . . . . . . . . . . . . Impact Corruptions . | . . . . . . . . . . . . Robots Melted . | . . . . . . . . . . . . Combat Hostiles . | . . . . . . . . . . . . Parts Melted 7 | 1 . 1 . . . 1 2 2 . . . Heat Transferred 950 | 400 175 375 . . . . . . . . . Parts Sabotaged . | . . . . . . . . . . . . Parts Stolen . | . . . . . . . . . . . . Parts Stripped . | . . . . . . . . . . . . Power Chain Reactions . | . . . . . . . . . . . . Alert | -11 -10 -10 -10 -8 -8 -8 -6 -5 -4 -3 -3 ------- Run | Yrd Mat Min Sub Mat Sto Rec Fac Fac Fac Res Arm Maximum Alert Level 2 | . . . . . . . 1 1 1 2 1 Low Security (%) 92 | 100 100 100 . 100 100 100 75 49 97 66 . Level 1 5 | . . . . . . . 24 50 2 8 100 Level 2 1 | . . . . . . . . . . 25 . Level 3 . | . . . . . . . . . . . . Level 4 . | . . . . . . . . . . . . Level 5 . | . . . . . . . . . . . . High Security . | . . . . . . . . . . . . Max Security . | . . . . . . . . . . . . Peak Influence 495 | 10 90 85 . 74 76 144 391 350 232 495 251 Initial 251 | . . . . . 24 . . 168 171 117 251 Average 58 | 1 24 21 . 23 19 14 136 228 123 232 244 Influence Increases 3866 | 40 187 353 . 271 235 223 735 670 319 818 15 Destroy 0b10 Robot/C 1340 | . 100 220 . 140 120 120 300 340 . . . Destroy 0b10 Robot/NC 125 | 40 10 5 . 20 15 . 5 15 15 . . Destroy Leader 288 | . 24 40 . 44 54 . 62 64 . . . Allied During Kill 516 | . . . . . . 87 332 97 . . . Successful Hack 54 | . 8 5 . . 15 14 . . 4 8 . Disable Machine 165 | . 15 . . 30 30 . 30 45 15 . . Destroy Structure 88 | . . 53 . 22 1 2 6 4 . . . Partial Spotted 15 | . . . . . . . . 15 . . . Lose Combat Pursuer 1275 | . 30 30 . 15 . . . 90 285 810 15 Influence Decreases 3630 | 40 187 289 64 214 292 223 390 665 445 563 258 Entered New Map 758 | . . . 34 . 33 . . 177 179 107 228 Time Decay 2012 | 40 187 269 30 194 259 203 130 238 206 246 10 Search Patrol Dispatched 150 | . . . . . . . . . . 150 . Lost Part 240 | . . 20 . 20 . . . 70 50 60 20 Lost Ally 470 | . . . . . . 20 260 180 10 . . Squads Dispatched 23 | . . 1 . 1 1 . 4 5 3 7 1 Investigation 8 | . . 1 . . . . . 2 2 3 . Extermination 4 | . . . . . . . . 1 1 2 . Reinforcement 11 | . . . . 1 1 . 4 2 . 2 1 Assault . | . . . . . . . . . . . . Garrison . | . . . . . . . . . . . . Intercept . | . . . . . . . . . . . . Searches Triggered 1 | . . . . . . . . . . 1 . Construction Impeded 1 | . . . . . . . . 1 . . . Haulers Reinforced 1 | . . . . . . . 1 . . . . Active Scanning Responses . | . . . . . . . . . . . . Cargo Convoy Interrupts . | . . . . . . . . . . . . Stealth | -11 -10 -10 -10 -8 -8 -8 -6 -5 -4 -3 -3 --------- Run | Yrd Mat Min Sub Mat Sto Rec Fac Fac Fac Res Arm Distress Signals 12 | . 3 . . 1 3 1 1 . . 2 1 Communications Jammed . | . . . . . . . . . . . . Distress Signals . | . . . . . . . . . . . . Times Spotted 207 | . 9 23 1 12 13 8 14 30 23 66 8 Peak Tracking Total 22 | . 4 15 1 5 3 4 8 10 9 22 7 Tactical Retreats 27 | . 1 2 . 1 . . . 2 4 16 1 Traps | -11 -10 -10 -10 -8 -8 -8 -6 -5 -4 -3 -3 ------- Run | Yrd Mat Min Sub Mat Sto Rec Fac Fac Fac Res Arm Traps Triggered 9 | . . 1 . . 2 . . 2 . 4 . Indirectly . | . . . . . . . . . . . . Trap Hack Attempts . | . . . . . . . . . . . . Triggered . | . . . . . . . . . . . . Disarmed . | . . . . . . . . . . . . Reprogrammed . | . . . . . . . . . . . . Reused . | . . . . . . . . . . . . Traps Extracted . | . . . . . . . . . . . . Installed 3 | . . . . 3 . . . . . . . Triggered . | . . . . . . . . . . . . Most Traps Carried 3 | . . 3 3 3 . . . . . . . Machines | -11 -10 -10 -10 -8 -8 -8 -6 -5 -4 -3 -3 ---------- Run | Yrd Mat Min Sub Mat Sto Rec Fac Fac Fac Res Arm Machines Disabled 11 | . 1 . . 2 2 . 2 3 1 . . Max in Single Turn 1 | . 1 . . 1 1 . 1 1 1 . . Machines Repaired . | . . . . . . . . . . . . Machines Dismantled . | . . . . . . . . . . . . Machines Sabotaged . | . . . . . . . . . . . . Overloaded Fab Kills . | . . . . . . . . . . . . Hacking | -11 -10 -10 -10 -8 -8 -8 -6 -5 -4 -3 -3 --------- Run | Yrd Mat Min Sub Mat Sto Rec Fac Fac Fac Res Arm Machines Accessed 22 | . 2 2 . . 5 4 . . 5 4 . Terminals 18 | . 2 1 . . 5 2 . . 4 4 . Fabricators . | . . . . . . . . . . . . Repair Stations . | . . . . . . . . . . . . Recycling Units . | . . . . . . . . . . . . Scanalyzers . | . . . . . . . . . . . . Garrison Access 1 | . . . . . . . . . 1 . . Total Hacks 46 | . 3 3 . . 8 10 . . 15 7 . Successful 19 | . 1 3 . . 3 7 . . 4 1 . Failed 27 | . 2 . . . 5 3 . . 11 6 . Catastrophic 12 | . 1 . . . 1 1 . . 5 4 . Database Lockouts . | . . . . . . . . . . . . Manual 20 | . 3 1 . . 3 3 . . 6 4 . Terminals 39 | . 3 2 . . 8 5 . . 14 7 . Fabricators . | . . . . . . . . . . . . Repair Stations . | . . . . . . . . . . . . Recycling Units . | . . . . . . . . . . . . Scanalyzers . | . . . . . . . . . . . . Garrison Access 1 | . . . . . . . . . 1 . . Terminal Hacks 17 | . 1 2 . . 3 7 . . 3 1 . Record 6 | . . . . . . 3 . . 3 . . Robot Analysis 1 | . . . . . . 1 . . . . . Open Door 2 | . . 1 . . 1 . . . . . . Branch Access Points 3 | . 1 . . . 1 . . . . 1 . Registered Components 2 | . . . . . 1 1 . . . . . Zone Layout 1 | . . 1 . . . . . . . . . Release Object 2 | . . . . . . 2 . . . . . Fabricator Hacks . | . . . . . . . . . . . . Repair Station Hacks . | . . . . . . . . . . . . Recycling Unit Hacks . | . . . . . . . . . . . . Scanalyzer . | . . . . . . . . . . . . Garrison Access Hacks . | . . . . . . . . . . . . Unauthorized Hacks 2 | . . 1 . . . . . . 1 . . Terminals 2 | . . 1 . . . . . . 1 . . Assimilate 1 | . . . . . . . . . 1 . . Sabotage 1 | . . 1 . . . . . . . . . Fabricators . | . . . . . . . . . . . . Repair Stations . | . . . . . . . . . . . . Recycling Units . | . . . . . . . . . . . . Scanalyzers . | . . . . . . . . . . . . Garrison Access . | . . . . . . . . . . . . Data Cores Recovered . | . . . . . . . . . . . . Used . | . . . . . . . . . . . . Hacking Detections 15 | . 1 . . . 4 2 . . 5 3 . Full Trace Events 3 | . . . . . . . . . 2 1 . Feedback Events . | . . . . . . . . . . . . Feedback Blocked . | . . . . . . . . . . . . Robot Schematics Acquired . | . . . . . . . . . . . . Robots Built . | . . . . . . . . . . . . Authchips . | . . . . . . . . . . . . Time . | . . . . . . . . . . . . Total Robot Build Rating . | . . . . . . . . . . . . Part Schematics Acquired . | . . . . . . . . . . . . Parts Built . | . . . . . . . . . . . . Authchips . | . . . . . . . . . . . . Time . | . . . . . . . . . . . . Total Part Build Rating . | . . . . . . . . . . . . Parts Repaired . | . . . . . . . . . . . . Time . | . . . . . . . . . . . . Parts Recycled . | . . . . . . . . . . . . Recycled Matter . | . . . . . . . . . . . . Retrieved Matter . | . . . . . . . . . . . . Retrieved Components . | . . . . . . . . . . . . Parts Scanalyzed . | . . . . . . . . . . . . Part Schematics Acquired . | . . . . . . . . . . . . Parts Damaged . | . . . . . . . . . . . . Bothacking | -11 -10 -10 -10 -8 -8 -8 -6 -5 -4 -3 -3 ------------ Run | Yrd Mat Min Sub Mat Sto Rec Fac Fac Fac Res Arm Used RIF Installer . | . . . . . . . . . . . . Robots Hacked 1 | . . . . . . . . . 1 . . Non-combat 1 | . . . . . . . . . 1 . . Combat . | . . . . . . . . . . . . Robot Hacks Applied 1 | . . . . . . . . . 1 . . find_chute 1 | . . . . . . . . . 1 . . Relay Couplers Released . | . . . . . . . . . . . . Fabnet Peak Effective % . | . . . . . . . . . . . . Robots Rewired 20 | . . . . . . 19 . . . . 1 Allies Hacked . | . . . . . . . . . . . . Hacks Repelled . | . . . . . . . . . . . . Allies | -11 -10 -10 -10 -8 -8 -8 -6 -5 -4 -3 -3 -------- Run | Yrd Mat Min Sub Mat Sto Rec Fac Fac Fac Res Arm Total Allies 31 | . . . . . 10 19 . . 1 . 1 Largest Group 28 | . . . . . 10 28 28 14 1 . 1 Highest-Rated Group 449 | . . . . . 173 449 449 219 10 . 48 Highest-Rated Ally 48 | . . . . . 29 29 29 27 10 . 48 Total Orders . | . . . . . . . . . . . . Ally Attacks 226 | . . . . . . 48 113 65 . . . Total Damage 3218 | . . . . . . 660 1604 954 . . . Kills 26 | . . . . . . 6 11 9 . . . Allies Corrupted . | . . . . . . . . . . . . Allies Melted . | . . . . . . . . . . . . Intel | -11 -10 -10 -10 -8 -8 -8 -6 -5 -4 -3 -3 ------- Run | Yrd Mat Min Sub Mat Sto Rec Fac Fac Fac Res Arm Active Infowar (turns) 6974 | 11 630 1316 331 381 862 1928 305 467 411 332 . Sensors 3968 | . . . . . 862 1928 305 454 373 46 . Terrain 772 | . . . . . . . 305 467 . . . Seismic 2669 | 11 630 1316 331 381 . . . . . . . Machine Analysis 425 | . . . . . . . . . 139 286 . Robot Analysis Total 1 | . . . . . . 1 . . . . . Derelict Logs Recovered 2 | . . 2 . . . . . . . . . Drone Launches . | . . . . . . . . . . . . Drone Recoveries . | . . . . . . . . . . . . Exploration | -11 -10 -10 -10 -8 -8 -8 -6 -5 -4 -3 -3 ------------- Run | Yrd Mat Min Sub Mat Sto Rec Fac Fac Fac Res Arm Turns Passed 7999 | 302 630 1402 331 511 1068 1952 305 513 421 532 32 Spaces Moved 5413 | 206 329 662 185 173 569 956 170 401 629 1084 49 Core 382 | 11 . . . . . . . 2 46 315 8 Treads 44 | 13 . . . 28 3 . . . . . . Legs 2 | 2 . . . . . . . . . . . Wheels 3461 | 180 329 662 185 145 566 956 170 268 . . . Hover 176 | . . . . . . . . . . 176 . Flight 1348 | . . . . . . . . 131 583 593 41 Fastest Speed 27 | 50 95 135 175 140 110 110 135 32 32 27 32 Average Speed 114 | 96 166 187 176 186 121 157 137 107 35 45 38 Slowest Speed 490 | 160 200 200 200 480 490 215 150 150 112 80 50 Overloaded Moves 1 | . . . . . . . . . . . 1 Propulsion Burnouts . | . . . . . . . . . . . . Robots Hopped 40 | . . . . . . . . 2 10 23 5 Potential Cave-ins . | . . . . . . . . . . . . Cave-ins Triggered . | . . . . . . . . . . . . Exploration Rate (%) 35 | 7 41 88 13 19 59 99 6 17 23 42 6 Regions Visited 11 Branch Regions 5 Pre-discovered Areas 1 | . . 1 . . . . . . . . . Known Exits Taken 6 | . 1 . . 1 1 1 1 . . 1 . Unknown Exits Taken 5 | 1 . 1 1 . . . . 1 1 . . Scrap Searched 1 | . . 1 . . . . . . . . . Spaces Dug 1 | . . . . . . 1 . . . . . Terrain Destroyed 139 | . . 75 13 40 . 1 9 1 . . . Melee 1 | . . . . . . 1 . . . . . Projectile 1 | . . . . . . . . 1 . . . AOE 137 | . . 75 13 40 . . 9 . . . . Terrain Rammed . | . . . . . . . . . . . . Walls Destroyed . | . . . . . . . . . . . . Machines Disabled . | . . . . . . . . . . . . Actions | -11 -10 -10 -10 -8 -8 -8 -6 -5 -4 -3 -3 --------- Run | Yrd Mat Min Sub Mat Sto Rec Fac Fac Fac Res Arm Total 6755 | 262 375 769 187 282 900 1383 215 433 795 1097 57 Wait 705 | 16 15 50 . 15 243 200 14 . 150 2 . Move 5325 | 205 328 661 184 172 568 955 169 396 608 1039 40 Hop 37 | . . . . . . . . 2 10 21 4 Pick Up 49 | 6 8 14 . 13 5 1 2 . . . . Fast Attach 50 | 9 . 3 . 7 6 . 3 3 8 11 . Attach 19 | . . 5 1 3 . 1 5 1 1 2 . Detach 12 | . . . . 3 3 . 2 . 3 1 . Swap 51 | . 2 8 1 9 19 7 3 1 . 1 . Drop 49 | 2 1 . . 14 17 3 3 1 4 4 . Fire 195 | 24 21 28 1 41 27 11 13 29 . . . Melee 19 | . . . . 2 2 3 1 . 11 . . Ram 5 | . . . . . . . . . . 2 3 Kick . | . . . . . . . . . . . . Crush . | . . . . . . . . . . . . Escape Stasis 22 | . . . . . 8 . . . . 14 . Rewire 214 | . . . . . 2 202 . . . . 10 Trap 3 | . . . . 3 . . . . . . . Miscellaneous . | . . . . . . . . . . . . Route ------- -11/Scrapyard -10/Materials (discovered 2 exits: *Min x2) -10/Mines -10/Subcaves -8/Materials -8/Storage -8/Recycling -6/Factory -5/Factory -4/Factory -3/Research (discovered 3 exits: *Arm / Tes x2) -3/Armory History --------- Turn | Location | Event 32 | -11/Scrapyard | Discovered new exit (range 15) 303 | -11/Scrapyard | Entered Materials 313 | -10/Materials | Build established: Mutant 355 | -10/Materials | Identified exit to Mines 933 | -10/Materials | Entered Mines 934 | -10/Mines | Assembled infested the area 937 | -10/Mines | Met a Derelict bent on vengeance 939 | -10/Mines | Assisted by a Guerilla fighting off Assembled 1076 | -10/Mines | Learned location of Storage (-8) 1111 | -10/Mines | Found a hidden stash of uninstalled traps 2146 | -10/Mines | Met a Derelict who couldn't figure out how to use a Trap Extractor 2271 | -10/Mines | Core integrity fell below 50% 2326 | -10/Mines | Discovered new exit (range 5) 2335 | -10/Mines | Entered Subcaves 2552 | -10/Subcaves | Discovered new exit (range 15) 2666 | -10/Subcaves | Entered Materials 2666 | -8/Materials | Evolved 4 slots: Propulsion x2, Utility x2 2667 | -8/Materials | Identified exit to Storage 2942 | -8/Materials | Build established: Scavenger-Mutant 3177 | -8/Materials | Entered Storage 3935 | -8/Storage | Identified exit to Recycling 4107 | -8/Storage | Used back door to open Recycling access 4148 | -8/Storage | Assisted by bots powering up and referring to "LRC-V3" 4245 | -8/Storage | Entered Recycling 4245 | -8/Recycling | Accompanied by 10 allies 4246 | -8/Recycling | Met a Zionite searching for Scraptown 4453 | -8/Recycling | Build established: Commander-Mutant 4999 | -8/Recycling | Discovered new exit (range 12) 5091 | -8/Recycling | Identified exit to Factory 5719 | -8/Recycling | Entered Scraplab 6197 | -8/Recycling | Entered Factory 6197 | -6/Factory | Accompanied by 28 allies 6197 | -6/Factory | Evolved 4 slots: Propulsion x2, Utility x2 6444 | -6/Factory | Discovered new exit (range 16) 6473 | -6/Factory | Identified exit to Factory 6485 | -6/Factory | Lost 12 allies 6502 | -6/Factory | Entered another Factory area 6502 | -5/Factory | Accompanied by 14 allies 6502 | -5/Factory | Evolved 2 slots: Propulsion x1, Utility x1 6592 | -5/Factory | Build established: Commander-Skirmisher 6694 | -5/Factory | Lost 3 allies 6810 | -5/Factory | P-70 Sage assimilated allied Trooper 3i 6969 | -5/Factory | Released all parts (9) 6998 | -5/Factory | Lost 5 parts (2n2u1w) 7010 | -5/Factory | Discovered new exit (range 16) 7011 | -5/Factory | Lost 7 allies 7015 | -5/Factory | Entered another Factory area 7015 | -4/Factory | Evolved 2 slots: Propulsion x1, Utility x1 7428 | -4/Factory | Discovered new exit (range 16) 7436 | -4/Factory | Entered Research 7436 | -3/Research | Evolved 2 slots: Utility x2 7448 | -3/Research | Lost 4 parts (2n2u) 7728 | -3/Research | Build established: Hacker-Mutant 7800 | -3/Research | Lost 3 parts (1n1u1w) 7883 | -3/Research | Core integrity fell below 50% 7914 | -3/Research | Spotted B-86 Titan 7919 | -3/Research | Identified exit to Armory 7919 | -3/Research | Identified exit to Testing 7936 | -3/Research | Search patrols dispatched 7968 | -3/Research | Entered Armory 7991 | -3/Armory | Core integrity fell below 20% 8000 | -3/Armory | Destroyed by S-43 Plague with Heavy Machine Gun Last Messages --------------- 07969_ O-24 Administrator: "IFF HANDSHAKE FAILED. SECURING TERMINAL." 07974_ Connecting with Terminal... 07974_ W-44 Eye sends out distress signal. 07975_ ALERT: Hostiles spotted, dispatching reinforcements to Terminal A012. 07982_ Attempting to rewire H-77 Assassin. 07986_ Cld. Impulse Thruster destroyed. 07986_ Slammed into S-43 Plague. 07987_ Slug penetrates Wall. 07987_ Penetrated by Slug. 07987_ Attempting to rewire H-77 Assassin. 07990_ Impulse Thruster Array destroyed. 07990_ Slug penetrates Wall. 07990_ Attempting to rewire H-77 Assassin. 07991_ Slammed into S-43 Plague. 07994_ Slug penetrates Wall. 07996_ Slammed into S-43 Plague. 07997_ Attempting to rewire L-61 Swordsman. 07999_ L-61 Swordsman rewired. Map ----- +----------------------------------------------------+ | | | | | | | | | | | | | | | | | | | | | ?????????????????????????????????????????????????? | | ?????????????????????????????????????????????????? | | ?????????????????????????????????????????????????? | | ?????????????????????????????????????????????????? | | ?????????????????????????????????????????????????? | | ?????????????????????????????????????????????????? | | ?????????????????????????????????????????????????? | | ?????????????????????????????????????????????????? | | ?????????????????????????????????????????????????? | | ???????????????????##########????????????????????? | | ???????????????????# #????????????????????? | | ???????????????????# #????????????????????? | | ???????????????????# s #????????????????????? | | ???????????????????# s #????????????????????? | | ???????????????????# s s ####???###???????????? | | ???????????????????# " ""@" # #???????????? | | ???????????????????# " "" " # """ #???????????? | | ???????????????????# " ""l" # """ #???????????? | | ???????????????????# #? """ ????????????? | | ???????????????????# #? ????????????? | | ???????????????????# #?? !!!?????????????? | | ???????????????????# #??| !!!?????????????? | | ???????????????????# #??? !!??????????????? | | ???????????????????# #??? ??????????????? | | ???????????????????# #?###+##?????????????? | | ?????????????############h##### ###########???? | | ?????????? T" #???? | | ?????????? "" #???? | | ?????????????############+##### ####+######???? | | ???????????????????????? ???###### #? | | ???????????????????????? ""????????# "" """ ! #? | | ??????????????????????? """???????# " """ #? | | ??????????????????????? """???????# "F """ ?? | | ?????????????????????? """ ??????# "" "? | | ?????????????????????? """ ??????# """ ? ?? | | ????????????????????? ??????????# """ ??? | | ????????????????????? ??????????# """ ??? | | ???????????????????? ??????????# ?????? | | ???????????????????? ??????????# ??????? | | ??????????????????? ????????????! ??????? | +----------------------------------------------------+ Best States ------------- Heat Dissipation 46 Energy Generation 35 Energy Capacity 290 Matter Stores 300 Matter Capacity 300 Sight Range 16 Robot Scan Range 18 Terrain Scan Range 16 Terrain Scan Density 110 Additional Mass Support 12 Armor Coverage 450 Propulsion Shielding 33 Evasion (%) 64 Launcher Accuracy 40 Recoil Reduction 4 Defensive Hacking 20 Item Schematics ----------------- None Robot Schematics ------------------ None Fabricated ------------ Nothing Repaired ---------- Nothing Alien Tech Used ----------------- None Achievements -------------- Universal Adapter Challenges ------------ None Game ------ Seed QuantumFusionReplicator Manual? 0 Play Time 00:54:55 Cumulative 105.5 hours Start 2025.08.08 @ 12:57:20 End 2025.08.08 @ 13:52:03 Sessions 1 Manual Loads 0 Difficulty Rogue Special Mode None Game No. 130 Rogue 130 Adventurer 0 Explorer 0 Win Type - Total 0 Types 0/0/0/0/0/0/0/0/0/0 Lore% 63 Gallery% 46 Achievement% 44 Wizard Run 0 Options --------- Layout 1 ASCII 0 Keyboard 0 Movement Arrows Keybinds 0 Fullscreen 1 Font 24/Smallcaps Map View 50x35 Zoom Use 0% Tactical HUD 1 Map Filters NONE Filters NONE Steam 1 RUN: 33b3af8a-42a1-445c-892a-9df3820dd75b